{"text_format":"1","workbook":"xlsx","n_sheets":4,"sheets":["Регистрация","Кроссворд","Анализ","Оценка"],"not_rendered":{"charts":0,"images":3,"macros":1,"external_links":0,"defined_names":0,"comments":1,"pivot_tables":0},"unopened":[],"bounds":{"document_bytes":16777216,"sheet_cells":100000,"rows_first":2000,"rows_last":500,"rows_between":2000,"halvings":0,"cell_chars":16384,"cell_head_chars":4096},"cells_cut":0,"cells_raw":0,"read":"whole","date_system":"1900"}

{"sheet":"Регистрация","index":0,"n_rows":10,"n_cols":4,"rows_kept":10,"cut":false,"hidden":false,"merged":[[3,2,3,3]]}
[]
[]
[]
[null,null,"Регистрация"]
[null,null,"Фамилия"]
[null,null,"Имя"]
[null,null,"Класс"]
[]
[]
[null,null,null,"Далее"]

{"sheet":"Кроссворд","index":1,"n_rows":2,"n_cols":8,"rows_kept":2,"cut":false,"hidden":false,"merged":[[1,7,1,16]]}
[]
[null,null,null,null,null,null,null,"Кроссворд"]

{"sheet":"Анализ","index":2,"n_rows":20,"n_cols":6,"rows_kept":20,"cut":false,"hidden":true,"merged":[]}
[]
[]
[]
[]
[]
[]
[null,null,"№ задания","Ответ","Правильный ответ","Баллы"]
[null,null,1,{"$f":"CONCATENATE(Кроссворд!N4,Кроссворд!N5,Кроссворд!N6,Кроссворд!N7,Кроссворд!N8,Кроссворд!N9,Кроссворд!N10,Кроссворд!N11,Кроссворд!N12,Кроссворд!N13)","v":""},"хризантема",{"$f":"IF(D8=E8,1,0)","v":0}]
[null,null,2,{"$f":"CONCATENATE(Кроссворд!M5,Кроссворд!N5,Кроссворд!O5,Кроссворд!P5,Кроссворд!Q5)","v":""},"арабы",{"$f":"IF(D9=E9,1,0)","v":0}]
[null,null,3,{"$f":"CONCATENATE(Кроссворд!K5,Кроссворд!K6,Кроссворд!K7,Кроссворд!K8,Кроссворд!K9)","v":""},"чарли",0]
[null,null,4,{"$f":"CONCATENATE(Кроссворд!I8,Кроссворд!J8,Кроссворд!K8,Кроссворд!L8,Кроссворд!M8,Кроссворд!N8,Кроссворд!O8,Кроссворд!P8,Кроссворд!Q8)","v":""},"кальвадос",0]
[null,null,5,{"$f":"CONCATENATE(Кроссворд!I8,Кроссворд!I9,Кроссворд!I10,Кроссворд!I11)","v":""},"киви",0]
[null,null,6,{"$f":"CONCATENATE(Кроссворд!D11,Кроссворд!E11,Кроссворд!F11,Кроссворд!G11,Кроссворд!H11,Кроссворд!I11,Кроссворд!J11)","v":""},"франция",0]
[null,null,7,{"$f":"CONCATENATE(Кроссворд!F11,Кроссворд!F12,Кроссворд!F13,Кроссворд!F14,Кроссворд!F15,Кроссворд!F16)","v":""},"анчоус",0]
[null,null,8,{"$f":"CONCATENATE(Кроссворд!E14,Кроссворд!F14,Кроссворд!G14,Кроссворд!H14)","v":""},"соль",0]
[null,null,9,{"$f":"CONCATENATE(Кроссворд!M11,Кроссворд!N11,Кроссворд!O11,Кроссворд!P11,Кроссворд!Q11,Кроссворд!R11,Кроссворд!S11)","v":""},"бегемот",0]
[null,null,10,{"$f":"CONCATENATE(Кроссворд!M13,Кроссворд!N13,Кроссворд!O13,Кроссворд!P13,Кроссворд!Q13)","v":""},"париж",0]
[]
[null,null,null,null,"Итог",{"$f":"SUM(F8:F17)","v":0}]
[null,null,null,null,"Оценка",{"$f":"IF(F19>8,5,IF(F19>6,4,IF(F19>4,3,2)))","v":2}]

{"sheet":"Оценка","index":3,"n_rows":9,"n_cols":3,"rows_kept":9,"cut":false,"hidden":false,"merged":[]}
[]
[]
[]
[null,null,"Фамилия"]
[null,null,"Имя"]
[null,null,"Класс"]
[]
[]
[null,null,"Оценка"]